[Event "Caplin Hastings Masters 2023-24"]
[Site "Hastings"]
[Date "2024.01.04"]
[Round "8.41"]
[White "Patel, Zain"]
[Black "Rastogi, Nayan Keats"]
[Result "1/2-1/2"]
[ECO "D05"]
[WhiteElo "1841"]
[BlackElo "1662"]
[Annotator "NA RC"]
[PlyCount "145"]
[EventDate "2023.12.18"]
[EventType "swiss"]
[EventCountry "ENG"]
[SourceTitle "playchess.com"]
[Source "ChessBase"]
[SourceQuality "1"]
[TimeControl "40/6000+30:3000+30"]

1. Nf3 {[%emt 0:00:05]} Nf6 {[%emt 0:00:11]} 2. d4 {[%emt 0:00:36]} d5 {[%emt 0:00:09]} 3. e3 {[%emt 0:00:18]} e6 {[%emt 0:00:24]} 4. Bd3 {[%emt 0:00:31]} Be7 {[%emt 0:01:08]} 5. O-O {[%emt 0:00:32]} O-O {[%emt 0:00:11]} 6. b3 {[%emt 0:01:16]} c5 {[%emt 0:01:24]} 7. Bb2 {[%emt 0:00:31]} b6 {[%emt 0:00:44]} 8. Nbd2 {[%emt 0:02:25]} Bb7 {[%emt 0:01:47]} 9. Qe2 {[%emt 0:02:16]} Ne4 {[%emt 0:04:19]} 10. Rad1 {[%emt 0:04:54]} Qc7 {[%emt 0:03:05]} 11. c4 {[%emt 0:02:47]} Nd7 {[%emt 0:03:40]} 12. cxd5 {[%emt 0:10:25]} exd5 {[%emt 0:12:07]} 13. Ne5 {[%emt 0:06:21]} Rad8 {[%emt 0:15:26]} 14. Nxd7 {[%emt 0:08:23]} Rxd7 {[%emt 0:00:38]} 15. dxc5 {[%emt 0:02:37]} bxc5 {[%emt 0:05:06]} 16. Qg4 {[%emt 0:08:09]} g6 {[%emt 0:12:58]} 17. Be5 {[%emt 0:21:41]} f5 {[%emt 0:17:15]} 18. Bxc7 {[%emt 0:05:10]} fxg4 {[%emt 0:00:16]} 19. Be5 {[%emt 0:03:22]} Nxd2 {[%emt 0:04:56]} 20. Rxd2 {[%emt 0:00:48]} Bd6 {[%emt 0:07:12]} 21. Bxd6 {[%emt 0:03:17]} Rxd6 {[%emt 0:00:07]} 22. Rc1 {[%emt 0:01:18]} Rc8 {[%emt 0:06:34]} 23. Rdc2 {[%emt 0:04:24]} Ba6 {[%emt 0:02:42]} 24. Bxa6 {[%emt 0:02:07]} Rxa6 {[%emt 0:00:07]} 25. Rxc5 {[%emt 0:02:00]} Rxc5 {[%emt 0:00:20]} 26. Rxc5 {[%emt 0:00:24]} Rxa2 {[%emt 0:03:14]} 27. g3 {[%emt 0:00:58]} Rd2 {[%emt 0:04:38]} 28. Rc8+ {[%emt 0:00:44]} Kg7 {[%emt 0:00:27]} 29. Rc7+ {[%emt 0:00:36]} Kh6 {[%emt 0:01:03]} 30. Rxa7 {[%emt 0:00:31]} d4 {[%emt 0:00:57]} 31. exd4 {[%emt 0:01:17]} Rd3 {[%emt 0:00:52]} 32. b4 {[%emt 0:01:31]} Rxd4 {[%emt 0:00:35]} 33. b5 {[%emt 0:00:26]} Rd1+ {[%emt 0:00:28]} 34. Kg2 {[%emt 0:00:16]} Rb1 {[%emt 0:00:09]} 35. Rb7 {[%emt 0:00:24]} Rb2 {[%emt 0:00:25]} 36. b6 {[%emt 0:00:47]} Rb1 {[%emt 0:00:24]} 37. Rb8 {[%emt 0:00:43]} Kg7 {[%emt 0:00:31]} 38. b7 {[%emt 0:00:34]} h5 {[%emt 0:00:29]} 39. h3 {[%emt 0:01:15]} gxh3+ {[%emt 0:01:07]} 40. Kxh3 {[%emt 0:00:09]} Rb4 {[%emt 0:00:32]} 41. Kg2 {[%emt 0:51:33]} Rb3 {[%emt 0:51:51]} 42. Kf1 {[%emt 0:01:28]} Rb2 {[%emt 0:00:00]} 43. Ke1 {[%emt 0:00:00]} Kh7 {[%emt 0:00:00]} 44. Kd1 {[%emt 0:00:00]} Kg7 {[%emt 0:00:00]} 45. Kc1 {[%emt 0:00:00]} Rb6 {[%emt 0:00:00]} 46. Kc2 {[%emt 0:00:00]} Kh7 {[%emt 0:00:00]} 47. Kc3 {[%emt 0:00:00]} Rb1 {[%emt 0:00:00]} 48. f4 {[%emt 0:00:00]} Kg7 {[%emt 0:00:00]} 49. Kd3 {[%emt 0:00:00]} Rb6 {[%emt 0:00:00]} 50. Kd4 {[%emt 0:00:00]} Rb1 {[%emt 0:00:00]} 51. f5 {[%emt 0:00:00]} gxf5 {[%emt 0:00:00]} 52. Ke5 {[%emt 0:00:00]} Rb6 {[%emt 0:00:00]} 53. Kxf5 {[%emt 0:00:00]} Rb5+ {[%emt 0:00:00]} 54. Kf4 {[%emt 0:00:00]} Kh7 {[%emt 0:00:00]} 55. Kf3 {[%emt 0:00:00]} Kg7 {[%emt 0:00:00]} 56. Kg2 {[%emt 0:00:00]} Rb2+ {[%emt 0:00:00]} 57. Kh3 {[%emt 0:00:00]} Rb4 {[%emt 0:00:00]} 58. Kg2 {[%emt 0:00:00]} Rb3 {[%emt 0:00:00]} 59. Kf2 {[%emt 0:00:00]} Kh7 {[%emt 0:00:00]} 60. Ke2 {[%emt 0:00:00]} Kg7 {[%emt 0:00:00]} 61. Kd2 {[%emt 0:00:00]} Rb1 {[%emt 0:00:00]} 62. Ke3 {[%emt 0:00:00]} Rb4 {[%emt 0:00:00]} 63. Kd3 {[%emt 0:00:00]} Rb1 {[%emt 0:00:00]} 64. Ke3 {[%emt 0:00:00]} Rb4 {[%emt 0:00:00]} 65. Kd3 {[%emt 0:00:00]} Rb1 {[%emt 0:00:00]} 66. Ke4 {[%emt 0:00:00]} Rb5 {[%emt 0:00:00]} 67. Kf4 {[%emt 0:00:00]} Kh7 {[%emt 0:00:00]} 68. Rf8 {[%emt 0:00:00]} Rxb7 {[%emt 0:00:00]} 69. Kg5 {[%emt 0:00:00]} Rb5+ {[%emt 0:00:00]} 70. Rf5 {[%emt 0:00:00]} Rxf5+ {[%emt 0:00:00]} 71. Kxf5 {[%emt 0:00:00]} h4 {[%emt 0:00:00]} 72. gxh4 {[%emt 0:00:00]} Kh8 {[%emt 0:00:00]} 73. Ke4 {[%emt 0:00:13]} 1/2-1/2

[Event "Caplin Hastings Masters 2023-24"]
[Site "Hastings"]
[Date "2024.01.04"]
[Round "8.42"]
[White "Metcalfe, Charlie P"]
[Black "Damodaran, Patrick"]
[Result "0-1"]
[ECO "E97"]
[WhiteElo "1760"]
[BlackElo "1798"]
[Annotator "NA RC"]
[PlyCount "58"]
[EventDate "2023.12.18"]
[EventType "swiss"]
[EventCountry "ENG"]
[SourceTitle "playchess.com"]
[Source "ChessBase"]
[SourceQuality "1"]
[TimeControl "40/6000+30:3000+30"]

1. d4 {[%emt 0:00:02]} Nf6 {[%emt 0:00:50]} 2. c4 {[%emt 0:00:01]} g6 {[%emt 0:01:52]} 3. Nc3 {[%emt 0:00:01]} Bg7 {[%emt 0:02:26]} 4. e4 {[%emt 0:00:02]} d6 {[%emt 0:02:11]} 5. Nf3 {[%emt 0:00:02]} O-O {[%emt 0:01:22]} 6. Be2 {[%emt 0:00:02]} e5 {[%emt 0:03:05]} 7. O-O {[%emt 0:00:35]} Nc6 {[%emt 0:03:10]} 8. d5 {[%emt 0:00:02]} Ne7 {[%emt 0:02:05]} 9. b4 {[%emt 0:00:14]} Nd7 {[%emt 0:01:19]} 10. a4 {[%emt 0:04:24]} f5 {[%emt 0:03:54]} 11. a5 {[%emt 0:01:18]} Nf6 {[%emt 0:02:58]} 12. c5 {[%emt 0:04:24]} h6 {[%emt 0:05:14]} 13. cxd6 {[%emt 0:04:54]} cxd6 {[%emt 0:01:17]} 14. Nd2 {[%emt 0:02:21]} f4 {[%emt 0:03:18]} 15. Nc4 {[%emt 0:01:19]} g5 {[%emt 0:02:26]} 16. f3 {[%emt 0:16:04]} h5 {[%emt 0:04:28]} 17. Nb5 {[%emt 0:00:30]} Ne8 {[%emt 0:01:03]} 18. Bd2 {[%emt 0:08:41]} Rf6 {[%emt 0:02:56]} 19. Be1 {[%emt 0:09:38]} Bd7 {[%emt 0:02:26]} 20. Nc3 {[%emt 0:08:42]} Rg6 {[%emt 0:01:51]} 21. Kh1 {[%emt 0:06:06]} g4 {[%emt 0:01:29]} 22. Rg1 {[%emt 0:02:27]} g3 {[%emt 0:01:07]} 23. h3 {[%emt 0:01:11]} Nc8 {[%emt 0:01:50]} 24. Na3 {[%emt 0:09:54]} Qh4 {[%emt 0:00:39]} 25. Bf1 {[%emt 0:00:04]} Nf6 {[%emt 0:00:51]} 26. Ncb5 {[%emt 0:02:55]} Ng4 {[%emt 0:03:43]} 27. Nc7 {[%emt 0:06:01]} Nf2+ {[%emt 0:00:20]} 28. Bxf2 {[%emt 0:00:01]} gxf2 {[%emt 0:00:10]} 29. Ne6 {[%emt 0:02:44]} Qxh3+ {[%emt 0:00:48]} 0-1

[Event "Caplin Hastings Masters 2023-24"]
[Site "Hastings"]
[Date "2024.01.04"]
[Round "8.43"]
[White "Wilson, Matthew R"]
[Black "Fryer, David W"]
[Result "0-1"]
[ECO "C41"]
[WhiteElo "1771"]
[BlackElo "1914"]
[Annotator "NA RC"]
[PlyCount "82"]
[EventDate "2023.12.18"]
[EventType "swiss"]
[EventCountry "ENG"]
[SourceTitle "playchess.com"]
[Source "ChessBase"]
[SourceQuality "1"]
[TimeControl "40/6000+30:3000+30"]

1. e4 {[%emt 0:00:01]} d6 {[%emt 0:00:18]} 2. Nc3 {[%emt 0:00:06]} e5 {[%emt 0:00:08]} 3. Nf3 {[%emt 0:00:26]} Nf6 {[%emt 0:00:16]} 4. d4 {[%emt 0:02:25]} Nbd7 {[%emt 0:00:12]} 5. Bc4 {[%emt 0:01:35]} Be7 {[%emt 0:00:12]} 6. O-O {[%emt 0:00:19]} c6 {[%emt 0:00:22]} 7. Ng5 {[%emt 0:16:50]} O-O {[%emt 0:01:17]} 8. f4 {[%emt 0:02:32]} exd4 {[%emt 0:03:14]} 9. Nxf7 {[%emt 0:07:56]} Rxf7 {[%emt 0:00:45]} 10. Bxf7+ {[%emt 0:00:05]} Kxf7 {[%emt 0:00:16]} 11. Qxd4 {[%emt 0:03:24]} d5 {[%emt 0:01:58]} 12. Kh1 {[%emt 0:01:45]} dxe4 {[%emt 0:13:48]} 13. Nxe4 {[%emt 0:08:46]} Nxe4 {[%emt 0:00:23]} 14. Qxe4 {[%emt 0:00:01]} Nf6 {[%emt 0:00:29]} 15. Qf3 {[%emt 0:02:07]} Qd5 {[%emt 0:04:32]} 16. f5 {[%emt 0:07:14]} Qxf3 {[%emt 0:03:31]} 17. Rxf3 {[%emt 0:03:23]} b6 {[%emt 0:00:26]} 18. Bg5 {[%emt 0:03:38]} Bb7 {[%emt 0:02:00]} 19. Rd1 {[%emt 0:04:22]} Re8 {[%emt 0:01:40]} 20. Kg1 {[%emt 0:08:25]} Bc5+ {[%emt 0:02:31]} 21. Kh1 {[%emt 0:01:07]} Ba6 {[%emt 0:03:15]} 22. Bxf6 {[%emt 0:03:20]} Kxf6 {[%emt 0:00:24]} 23. h3 {[%emt 0:08:19]} Be2 {[%emt 0:07:09]} 24. Re1 {[%emt 0:00:13]} Re7 {[%emt 0:02:47]} 25. Rf4 {[%emt 0:00:15]} Bd6 {[%emt 0:03:37]} 26. Rf2 {[%emt 0:01:39]} Bc4 {[%emt 0:01:59]} 27. Rxe7 {[%emt 0:03:21]} Bxe7 {[%emt 0:00:14]} 28. b3 {[%emt 0:00:08]} Bc5 {[%emt 0:01:50]} 29. Rf4 {[%emt 0:02:07]} Bd5 {[%emt 0:00:58]} 30. c4 {[%emt 0:02:03]} Bf7 {[%emt 0:00:20]} 31. Rf1 {[%emt 0:01:56]} a5 {[%emt 0:03:02]} 32. a4 {[%emt 0:02:36]} h5 {[%emt 0:00:50]} 33. g4 {[%emt 0:00:24]} hxg4 {[%emt 0:03:05]} 34. hxg4 {[%emt 0:00:02]} Kg5 {[%emt 0:00:39]} 35. Rd1 {[%emt 0:02:14]} Kxg4 {[%emt 0:06:19]} 36. Rd7 {[%emt 0:00:50]} Bh5 {[%emt 0:00:20]} 37. Rxg7+ {[%emt 0:00:40]} Kxf5 {[%emt 0:00:30]} 38. Rd7 {[%emt 0:01:50]} Kf4 {[%emt 0:01:57]} 39. Kg2 {[%emt 0:01:59]} Ke3 {[%emt 0:01:04]} 40. Rh7 {[%emt 0:04:03]} Bf3+ {[%emt 0:02:17]} 41. Kf1 {[%emt 0:50:33]} Kd4 {[%emt 0:50:56]} 0-1